fUST/lending_fUST_20241126
["ID","MTS","AMOUNT","RATE_DAILY","PERIOD"]
[343350886,1732589230359,-301.113358,0.00029645,7]
[343350887,1732589230381,-301.113358,0.00029645,7]
[343350888,1732589230405,-155.95517304,0.00029645,7]
[343350889,1732589243094,-224.4375562,0.00028641,2]
[343350890,1732589243125,-145.15818496,0.00029645,7]
[343350891,1732589243147,-301.113358,0.00029645,7]
[343350892,1732589243168,-301.11336489,0.00029645,7]
[343350893,1732589243189,-169.38,0.000298,2]
[343350894,1732589243209,-324.0,0.0003,2]
[343350895,1732589243229,-150.19629662,0.00033431,10]
[343350896,1732589243249,-150.32297561,0.00033431,10]
[343350897,1732589243268,-150.18210041,0.00033431,10]
[343350898,1732589243288,-1396.84650053,0.00033978,27]
[343350899,1732589243308,-1210.99572317,0.00034998,2]
[343350900,1732589243328,-150.0,0.00035,69]
[343350901,1732589243348,-6000.0,0.00035,120]
[343350902,1732589243376,-1881.34623282,0.00035,5]
[343350903,1732589243396,-2283.64138963,0.00035,120]
[343350904,1732589247096,-465.99259609,0.00035,120]
[343350905,1732589361103,-241.69,0.00029631,3]
[343350906,1732589361125,-725.1,0.00029631,3]
[343350907,1732589361146,-500.0,0.0002964,2]
[343350908,1732589361169,-500.0,0.0002964,2]
[343350909,1732589361190,-500.0,0.0002964,2]
[343350910,1732589361217,-503.66008856,0.0002964,2]
[343350911,1732589361243,-213.510444,0.00029641,7]
[343350912,1732589361266,-213.510444,0.00029641,7]
[343350913,1732589361286,-213.510444,0.00029641,7]
[343350914,1732589361307,-213.510444,0.00029641,7]
[343350915,1732589361329,-213.510444,0.00029641,7]
[343350916,1732589361352,-213.510444,0.00029641,7]
[343350917,1732589361374,-213.510444,0.00029641,7]
[343350918,1732589361395,-213.510444,0.00029641,7]
[343350919,1732589361415,-213.510444,0.00029641,7]
[343350920,1732589361439,-213.510444,0.00029641,7]
[343350921,1732589361468,-213.510444,0.00029641,7]
[343350922,1732589361495,-213.510444,0.00029641,7]
[343350923,1732589361522,-213.510444,0.00029641,7]
[343350924,1732589361546,-213.510444,0.00029641,7]
[343350925,1732589361572,-213.510444,0.00029641,7]
[343350926,1732589361597,-213.510444,0.00029641,7]
[343350927,1732589361622,-213.510444,0.00029641,7]
[343350928,1732589361648,-213.510444,0.00029641,7]
[343350929,1732589361672,-213.510444,0.00029641,7]
[343350930,1732589361699,-213.510454,0.00029641,7]
[343350931,1732589361724,-151.0,0.00029641,7]
[343350932,1732589361750,-151.219624,0.00029641,7]
[343350933,1732589361774,-206.94,0.000298,2]
[343350934,1732589361799,-483.38,0.00031001,3]
[343350935,1732589403066,241.7,0.00029631,3]
[343350936,1732589403421,483.4,0.00031001,3]
[343350937,1732589414036,725.11,0.00029631,3]
[343350989,1732589432533,-2797.14978337,0.00029641,10]
[343351324,1732589436876,500.0,0.0002964,2]
[343351341,1732589437174,500.0,0.0002964,2]
[343351394,1732589437710,500.0,0.0002964,2]
[343351423,1732589437976,86.59139744,0.0002964,2]
[343351426,1732589438004,413.40860256,0.0002964,2]
[343351469,1732589438355,500.0,0.0002964,2]
[343351499,1732589438640,500.0,0.0002964,2]
[343351512,1732589438758,-1995743.23540997,0.00029641,10]
[343351618,1732589439894,-12028.91330625,0.00029641,10]
[343351622,1732589439922,269.5931,0.0002964,2]
[343351802,1732589441626,500.0,0.0002964,2]
[343352007,1732589443470,-3951116.95078587,0.00029641,10]
[343352010,1732589443482,-402779.16311165,0.00029641,10]
[343352012,1732589443492,-329845.22003951,0.00029641,10]
[343352014,1732589443503,-5449.85168668,0.00029641,15]
[343352016,1732589443512,-43821.27431045,0.00029641,10]
[343352317,1732589446428,500.0,0.0002964,2]
[343352318,1732589446456,500.0,0.0002964,2]
[343352319,1732589446483,94.75181173,0.0002964,2]
[343359754,1732590046385,168.116713,0.00013973,2]
[343359755,1732590351148,-549.77575654,0.00025,2]
[343359756,1732590440135,-591.98682097,0.00025,2]
[343359757,1732590440158,-355.20138037,0.00025,2]
[343359758,1732590440180,-164.891211,0.00027015,2]
[343359759,1732590440203,-204.57280125,0.00027638,2]
[343359760,1732590445154,-95.42719875,0.00027638,2]
[343359761,1732590445175,-300.0,0.00027638,2]
[343359762,1732590445197,-46.3270986,0.00027639,2]
[343359764,1732590549201,-300.0,0.00027638,2]
[343359765,1732590549224,-9935.64275236,0.00027639,2]
[343359766,1732590563130,-14898.03014904,0.00027639,2]
[343359767,1732590563160,-1993.9925501,0.00027852,2]
[343359768,1732590563195,-159.16,0.000284,31]
[343359769,1732590563220,-131.51144775,0.0002843,2]
[343359770,1732590570129,-181.63225734,0.0002843,2]
[343359771,1732590574309,-500.0,0.00029315,2]
[343359772,1732590574335,-502.07358054,0.00029315,2]
[343359773,1732590574361,-500.0,0.00029315,2]
[343359774,1732590574385,-500.0,0.00029315,2]
[343359775,1732590574413,-500.0,0.00029315,2]
[343359776,1732590574440,-170.23935415,0.00029315,2]
[343359777,1732590574467,-535.2123107,0.00029315,2]
[343359778,1732590574491,-616.70003345,0.0002954,2]
[343359779,1732590574516,-627.89189346,0.0002954,2]
[343359780,1732590574539,-520.22395239,0.0002954,2]
[343359781,1732590574565,-500.0,0.0002954,2]
[343359782,1732590574589,-500.0,0.0002954,2]
[343359783,1732590574614,-500.0,0.0002954,2]
[343359784,1732590574638,-178.20259131,0.0002954,2]
[343359785,1732590574664,-53554.21025068,0.00029541,2]
[343359786,1732590574689,-5153.19723772,0.00029541,2]
[343359787,1732590574714,-294.20886194,0.00029543,2]
[343359788,1732590574738,-174.3558414,0.00029543,2]
[343359789,1732590574763,-500.0,0.00029639,2]
[343359790,1732590574785,-500.0,0.0002964,2]
[343359791,1732590574809,-500.0,0.0002964,2]
[343359792,1732590574834,-500.0,0.0002964,2]
[343359793,1732590574858,-500.0,0.0002964,2]
[343359794,1732590574883,-500.0,0.0002964,2]
[343359795,1732590574914,-500.0,0.0002964,2]
[343359796,1732590574938,-500.0,0.0002964,2]
[343359797,1732590574965,-500.0,0.0002964,2]
[343359798,1732590574991,-500.0,0.0002964,2]
[343359799,1732590575014,-387.93431285,0.0002964,2]
[343359800,1732590575038,-500.27104202,0.0002964,2]
[343359801,1732590575063,-500.0,0.0002964,2]
[343359802,1732590575235,-500.0,0.0002964,2]
[343359803,1732590575258,-500.0,0.0002964,2]
[343359804,1732590575281,-500.0,0.0002964,2]
[343359805,1732590575302,-500.0,0.0002964,2]
[343359806,1732590575324,-500.0,0.0002964,2]
[343359807,1732590575346,-500.0,0.0002964,2]
[343359808,1732590575368,-500.0,0.0002964,2]
[343359809,1732590575389,-500.0,0.0002964,2]
[343359810,1732590575412,-500.0,0.0002964,2]
[343359811,1732590575434,-500.0,0.0002964,2]
[343359812,1732590575455,-500.0,0.0002964,2]
[343359813,1732590575476,-500.0,0.0002964,2]
[343359814,1732590575498,-500.0,0.0002964,2]
[343359815,1732590575520,-500.0,0.0002964,2]
[343359816,1732590575543,-613.66664093,0.0002964,2]
[343359817,1732590575565,-163.30129007,0.00029642,2]
[343359818,1732590575586,-387.58799153,0.00029642,2]
[343359819,1732590575606,-340.15302107,0.00029642,2]
[343359820,1732590575628,-352.42308747,0.00029642,2]
[343359821,1732590575650,-500.0,0.00029642,2]
[343359822,1732590575673,-500.0,0.00029642,2]
[343359823,1732590575696,-187.50929846,0.00029642,2]
[343359824,1732590575718,-500.0,0.00029642,2]
[343359825,1732590575739,-650.07214882,0.00029642,2]
[343359826,1732590575762,-179.78070636,0.00029642,2]
[343359827,1732590575783,-170.37713807,0.00029642,2]
[343359828,1732590575807,-178.20259131,0.00029642,2]
[343359829,1732590575827,-178.20259131,0.00029642,2]
[343359830,1732590575854,-152.056025,0.00029643,7]
[343359831,1732590575875,-186.24,0.000298,2]
[343359832,1732590575898,-159.16,0.0003,31]
[343359833,1732590575922,-159.16,0.0003,31]
[343359834,1732590575942,-440.0,0.0003,2]
[343359835,1732590575964,-159.16,0.000316,31]
[343359836,1732590575986,-159.16,0.000316,31]
[343359837,1732590576007,-500.0,0.00032876,2]
[343359838,1732590576027,-494.3121557,0.00032876,2]
[343359839,1732590576046,-487.19127866,0.00032876,2]
[343359840,1732590576066,-378.67841408,0.00032876,2]
[343359841,1732590576087,-404.37198022,0.00032876,2]
[343359842,1732590576107,-381.03634348,0.00032876,2]
[343359843,1732590576129,-159.16,0.000332,31]
[343359844,1732590576151,-159.16,0.000332,31]
[343359845,1732590576174,-150.096,0.00033328,2]
[343359846,1732590576195,-150.0,0.00033328,2]
[343359847,1732590576217,-151.077,0.00033451,7]
[343359848,1732590576239,-1477.9410531,0.00034298,14]
[343359849,1732590602473,300.0,0.00029642,2]
[343359850,1732590628668,167.62,0.000301,2]
[343359859,1732590638844,-1995743.23540997,0.00029643,10]
[343359892,1732590639143,-35800.16792131,0.00029643,10]
[343359895,1732590639155,-1269.4910218,0.00029643,10]
[343359897,1732590639167,-9311.17371291,0.00029643,10]
[343359900,1732590639177,-953.94056877,0.00029643,60]
[343359903,1732590639187,-427.0282474,0.00029643,5]
[343359905,1732590639197,-83850.85747101,0.00029643,30]
[343360061,1732590640691,-7232.48297435,0.00029643,30]
[343360063,1732590640703,-9650.3520568,0.00029643,30]
[343360528,1732590645573,-1443.72114861,0.00029643,30]
[343360530,1732590645583,-153181.12335067,0.00029643,10]
[343360899,1732590654261,348.71168282,0.00029543,2]
[343360900,1732590660116,226.25,0.00029633,10]
[343360901,1732591171786,168.116713,0.00013973,2]
[343360915,1732591557459,-190.92523417,0.00024652,2]
[343360916,1732591557482,-1850.85015925,0.00024953,2]
[343360918,1732591636103,-210.83985437,0.00024901,2]
[343360919,1732591636126,-93.11642101,0.00024953,2]
[343360920,1732591640088,-291.89551314,0.00024953,2]
[343360921,1732591645115,-245.89852157,0.00024953,2]
[343360922,1732591648119,-315.60050474,0.00024953,2]
[343360923,1732591652124,-4132.81624385,0.00024953,2]
[343360924,1732591652148,-1007.49125633,0.00025001,5]
[343360925,1732591652171,-300.0,0.00026848,2]
[343360926,1732591652200,-300.0,0.00026848,2]
[343360927,1732591652225,-1963.08418334,0.00027766,2]
[343360928,1732591653092,-216.13415096,0.00027766,2]
[343360929,1732591749127,-406.39191152,0.00023,2]
[343360930,1732591751132,-46.60808807,0.00023,2]
[343360931,1732591751155,-917.9720282,0.00027766,2]
[343360932,1732591751181,-571.29979772,0.00028852,2]
[343360933,1732591751204,-3276.04911408,0.00029298,7]
[343360934,1732591751228,-507.02135161,0.00029315,2]
[343360935,1732591751254,-300.0,0.00029398,2]
[343360936,1732591751277,-300.0,0.00029398,2]
[343360937,1732591751298,-502.86,0.00029399,2]
[343360938,1732591751323,-500.0,0.00029399,2]
[343360939,1732591751346,-5000.0,0.00029399,2]
[343360940,1732591751370,-500.0,0.00029399,2]
[343360941,1732591751392,-343.42138137,0.00029399,2]
[343360942,1732591751416,-6739.20639061,0.000294,7]
[343360943,1732591751437,-1425.912736,0.000294,2]
[343360944,1732591751460,-2081.51413847,0.00029497,10]
[343360945,1732591751482,-349.62618656,0.000295,2]
[343360946,1732591751507,-349.62618655,0.00029506,2]
[343360947,1732591751530,-349.62618655,0.00029511,2]
[343360948,1732591751553,-349.62618655,0.00029517,2]
[343360949,1732591751575,-349.62618655,0.00029522,2]
[343360950,1732591751597,-349.62618655,0.00029528,2]
[343360951,1732591751620,-349.62618655,0.00029533,2]
[343360952,1732591751642,-579.10207298,0.00029539,2]
[343360953,1732591751666,-349.62618655,0.00029539,2]
[343360954,1732591751689,-502.86,0.00029542,2]
[343360955,1732591751712,-5000.0,0.00029542,2]
[343360956,1732591751738,-363.26,0.00029542,2]
[343360957,1732591751762,-509.01034315,0.00029542,2]
[343360958,1732591751784,-244.87555807,0.00029542,2]
[343360959,1732591751807,-25108.2142601,0.00029543,2]
[343360960,1732591751830,-160.71,0.000296,2]
[343360961,1732591751854,-177.17,0.00029629,3]
[343360962,1732591751966,-531.53,0.00029629,3]
[343360963,1732591751990,-227.53,0.00029629,10]
[343360964,1732591752019,-500.0,0.00029638,2]
[343360965,1732591752044,-500.0,0.00029638,2]
[343360966,1732591752069,-427.5478167,0.00029638,2]
[343360967,1732591752094,-500.0,0.00029638,2]
[343360968,1732591752118,-500.0,0.00029638,2]
[343360969,1732591752143,-269.9761533,0.00029638,2]
[343360970,1732591752171,-500.0,0.00029638,2]
[343360971,1732591752194,-500.0,0.00029638,2]
[343360972,1732591752220,-500.0,0.00029638,2]
[343360973,1732591752244,-500.0,0.00029638,2]
[343360974,1732591752270,-500.0,0.00029638,2]
[343360975,1732591752295,-500.0,0.00029638,2]
[343360976,1732591752317,-500.0,0.00029638,2]
[343360977,1732591752340,-500.0,0.00029638,2]
[343360978,1732591752363,-500.0,0.00029638,2]
[343360979,1732591752386,-173.17890287,0.00029638,2]
[343360980,1732591752409,-300.0,0.00029638,2]
[343360981,1732591752431,-199.1130539,0.00029638,2]
[343360982,1732591752454,-500.0,0.00029638,2]
[343360983,1732591752478,-500.0,0.00029638,2]
[343360984,1732591752508,-500.0,0.00029638,2]
[343360985,1732591752537,-500.0,0.00029638,2]
[343360986,1732591752563,-469.76596692,0.00029638,2]
[343360987,1732591752587,-456.12091383,0.00029638,2]
[343360991,1732591807668,447.68877992,0.00027912,2]
[343360992,1732591819052,288.645384,0.00028562,2]
[343361049,1732591839040,-2245.25842803,0.00029298,7]
[343361051,1732591839050,-1659.03731797,0.00029398,2]
[343361054,1732591839062,-3340.96268203,0.00029398,2]
[343361056,1732591839071,-210.83985436,0.00029538,2]
[343361058,1732591839080,-300.0,0.00029541,2]
[343361060,1732591839091,-2151.25968634,0.00029542,2]
[343361062,1732591839100,-46.73908617,0.00029638,2]
[343361064,1732591839109,-502.86,0.00029638,2]
[343361066,1732591839118,-502.86,0.00029638,2]
[343361068,1732591839127,-502.86,0.00029638,2]
[343361070,1732591839137,-502.86,0.00029638,2]
[343361072,1732591839146,-502.86,0.00029638,2]
[343361074,1732591839155,-502.86,0.00029638,2]
[343361076,1732591839165,-502.86,0.00029638,2]
[343361078,1732591839174,-502.86,0.00029638,2]
[343361080,1732591839188,-502.86,0.00029638,2]
[343361082,1732591839197,-502.86,0.00029638,2]
[343361084,1732591839206,-502.86,0.00029638,2]
[343361086,1732591839215,-502.86,0.00029638,2]
[343361088,1732591839226,-502.86,0.00029638,2]
[343361090,1732591839235,-502.86,0.00029638,2]
[343361092,1732591839245,-502.86,0.00029638,2]
[343361094,1732591839254,-502.86,0.00029638,2]
[343361096,1732591839264,-502.86,0.00029638,2]
[343361098,1732591839273,-502.86,0.00029638,2]
[343361100,1732591839282,-502.86,0.00029638,2]
[343361102,1732591839291,-502.86,0.00029638,2]
[343361104,1732591839299,-502.89695987,0.00029638,2]
[343361106,1732591839308,-151.0,0.00029639,7]
[343361108,1732591839318,-151.0,0.00029639,7]
[343361110,1732591839327,-171.73986105,0.00029639,7]
[343361112,1732591839337,-159.45878,0.00029639,7]
[343361114,1732591839346,-262.189401,0.00029639,7]
[343361116,1732591839355,-151.0,0.00029639,7]
[343361118,1732591839364,-151.0,0.00029639,7]
[343361120,1732591839373,-151.0,0.00029639,7]
[343361122,1732591839383,-151.0,0.00029639,7]
[343361124,1732591839392,-151.0,0.00029639,7]
[343361126,1732591839401,-151.0,0.00029639,7]
[343361128,1732591839410,-151.0,0.00029639,7]
[343361130,1732591839418,-151.0,0.00029639,7]
[343361132,1732591839427,-151.0,0.00029639,7]
[343361134,1732591839436,-151.0,0.00029639,7]
[343361136,1732591839445,-151.0,0.00029639,7]
[343361138,1732591839454,-214.618012,0.00029639,7]
[343361140,1732591839463,-151.0,0.00029639,7]
[343361142,1732591839472,-254.711116,0.00029639,7]
[343361144,1732591839481,-198.32584,0.00029639,7]
[343361146,1732591839490,-163.25037205,0.0002964,2]
[343361148,1732591839499,-163.25037205,0.0002964,2]
[343361150,1732591839508,-163.25037205,0.0002964,2]
[343361152,1732591839517,-898304.01820164,0.0002964,10]
[343361154,1732591839527,-1682.97759271,0.0002964,120]
[343361156,1732591839536,-1075281.54722065,0.0002964,10]
[343361226,1732591840198,-27.32205795,0.0002964,10]
[343361661,1732591844746,-11969.92204609,0.0002964,10]
[343361663,1732591844757,-4886.11576262,0.0002964,10]
[343361731,1732591845471,168.116713,0.00013973,2]
[343361863,1732592735140,-164.441022,0.00023373,2]
[343361864,1732592735160,-829.36777329,0.00024088,2]
[343361866,1732592847136,-1307.74999747,0.00024088,2]
[343361867,1732592848077,-538.72376208,0.00024088,2]
[343361868,1732592848123,-1812.15914433,0.00024088,2]
[343361869,1732592848145,-692.98422643,0.00025999,30]
[343361870,1732592854103,-298.72987357,0.00025999,30]
[343361871,1732592854125,-151.05909045,0.00027095,2]
[343361872,1732592953164,-59.78076391,0.00027095,2]
[343361873,1732592953189,-235.1090081,0.00027195,2]
[343361874,1732592953212,-1705.6857537,0.00028818,2]
[343361875,1732592953234,-300.0,0.00028999,2]
[343361876,1732592953257,-300.0,0.00028999,2]
[343361877,1732592953280,-225.0,0.00028999,2]
[343361878,1732592953303,-2002.0,0.00029,2]
[343361879,1732592953327,-6050.34278121,0.00029,2]
[343361880,1732592953350,-3153.60150526,0.00029298,7]
[343361881,1732592953373,-848.09895841,0.00029397,2]
[343361882,1732592974117,-4644.12340996,0.00029396,2]
[343361883,1732592974142,-500.0,0.00029396,2]
[343361884,1732592974164,-496.2228285,0.00029397,2]
[343361900,1732593032346,-1826.15,0.00029396,2]
[343361901,1732593032356,-500.0,0.00029398,2]
[343361902,1732593032365,-500.0,0.00029398,2]
[343361903,1732593032374,-272.50431131,0.00029398,2]
[343361904,1732593032383,-300.0,0.00029398,2]
[343361905,1732593032392,-500.0,0.00029399,2]
[343361906,1732593032401,-5.55172756,0.00029399,2]
[343361985,1732593038480,-494.44827244,0.00029399,2]
[343361987,1732593038489,-475.44118841,0.00029399,2]
[343361989,1732593038499,-465.505,0.0002954,2]
[343361991,1732593038508,-446.84564175,0.0002954,2]
[343361993,1732593038518,-500.0,0.00029542,2]
[343361994,1732593038527,-505.07822808,0.00029542,2]
[343361996,1732593038537,-8441.93496709,0.00029547,2]
[343361998,1732593038549,-300.75,0.00029629,3]
[343362000,1732593038558,-250.63,0.00029629,3]
[343362002,1732593038568,-751.91,0.00029629,3]
[343362005,1732593038577,-152.86,0.00029629,10]
[343362007,1732593038588,-500.0,0.00029637,2]
[343362009,1732593038597,-586.59139744,0.00029637,2]
[343362011,1732593038607,-1826.15,0.00029637,2]
[343362013,1732593038617,-1826.15,0.00029637,2]
[343362014,1732593038626,-1826.15,0.00029637,2]
[343362016,1732593038636,-163.25037205,0.00029638,2]
[343362018,1732593038646,-188.79033932,0.00029638,2]
[343362021,1732593038656,-185.90876699,0.00029638,2]
[343362023,1732593038666,-200.0,0.00029638,2]
[343362024,1732593038675,-500.0,0.00029638,2]
[343362027,1732593038685,-403.55554,0.00029638,2]
[343362029,1732593038694,-233.83471118,0.00029638,2]
[343362031,1732593038704,-187.79388467,0.00029638,2]
[343362033,1732593038713,-500.0,0.00029638,2]
[343362035,1732593038723,-500.0,0.00029638,2]
[343362037,1732593038732,-500.0,0.00029638,2]
[343362039,1732593038742,-500.0,0.00029638,2]
[343362041,1732593038752,-500.0,0.00029638,2]
[343362043,1732593038761,-500.0,0.00029638,2]
[343362045,1732593038770,-500.0,0.00029638,2]
[343362047,1732593038779,-500.0,0.00029638,2]
[343362049,1732593038789,-500.0,0.00029638,2]
[343362051,1732593038797,-500.0,0.00029638,2]
[343362053,1732593038807,-500.0,0.00029638,2]
[343362055,1732593038818,-500.0,0.00029638,2]
[343362057,1732593038827,-500.0,0.00029638,2]
[343362059,1732593038836,-500.0,0.00029638,2]
[343362061,1732593038846,-500.0,0.00029638,2]
[343362063,1732593038855,-500.0,0.00029638,2]
[343362065,1732593038864,-500.0,0.00029638,2]
[343362067,1732593038874,-500.0,0.00029638,2]
[343362069,1732593038883,-500.0,0.00029638,2]
[343362071,1732593038893,-500.0,0.00029638,2]
[343362073,1732593038902,-606.83604604,0.00029638,2]
[343362075,1732593038911,-1826.15,0.00029638,2]
[343362077,1732593038921,-1826.15,0.00029638,2]
[343362079,1732593038930,-1826.15,0.00029638,2]
[343362081,1732593038939,-1826.15,0.00029638,2]
[343362083,1732593038949,-1826.15,0.00029638,2]
[343362085,1732593038958,-1826.15,0.00029638,2]
[343362087,1732593038970,-1826.15,0.00029638,2]
[343362089,1732593038979,-1826.15,0.00029638,2]
[343362091,1732593038990,-1826.15,0.00029638,2]
[343362093,1732593038999,-1826.15,0.00029638,2]
[343362095,1732593039008,-1826.15,0.00029638,2]
[343362097,1732593039018,-1826.15,0.00029638,2]
[343362099,1732593039027,-1826.15,0.00029638,2]
[343362101,1732593039037,-1826.15,0.00029638,2]
[343362103,1732593039046,-1826.15,0.00029638,2]
[343362105,1732593039056,-1826.15,0.00029638,2]
[343362107,1732593039066,-1826.15,0.00029638,2]
[343362109,1732593039075,-1826.15,0.00029638,2]
[343362111,1732593039085,-1826.15,0.00029638,2]
[343362113,1732593039095,-1826.3271715,0.00029638,2]
[343362115,1732593039104,-163.25037205,0.00029639,2]
[343362117,1732593039114,-163.25037205,0.00029639,2]
[343362119,1732593039123,-1926873.14313891,0.00029639,10]
[343362524,1732593043287,-37345.61468429,0.00029639,10]
[343362527,1732593043301,-11152.91082755,0.00029639,10]
[343362902,1732593235983,-235.0,0.0003,120]
[343362903,1732593236011,-151.0,0.0003,120]
[343362904,1732593236037,-203.477291,0.00030137,120]
[343362905,1732593236068,-160.0,0.00032,120]
[343362906,1732593236095,-151.0,0.00033534,120]
[343362907,1732593236123,-99.522709,0.00034,120]
[343362908,1732593236164,-70.477291,0.00034,120]
[343362909,1732593236193,-279.04373112,0.00035,120]
[343362910,1732593236221,-25.20428597,0.00035014,120]
[343362911,1732593262064,205.328409,0.00013973,2]
[343362912,1732593302984,178.0596771,0.00030137,120]
[343362915,1732593752959,100.98405402,0.00031945,120]
[343362916,1732593928511,184.878015,0.00013973,2]
[343362917,1732593934145,-174.99309045,0.00025205,2]
[343362918,1732593934170,-419.18596997,0.00028595,2]
[343362919,1732594029133,-179.73491971,0.00028595,2]
[343362920,1732594037131,-537.23363202,0.00028595,2]
[343362921,1732594037152,-500.0,0.00029397,2]
[343362922,1732594037173,-501.01256826,0.00029397,2]
[343362923,1732594037196,-37.9207485,0.00029397,2]
[343362924,1732594040102,-187.0792515,0.00029397,2]
[343362925,1732594040125,-255.47851252,0.00029397,2]
[343362926,1732594048099,-44.52148748,0.00029397,2]
[343362927,1732594048120,-359.55263255,0.00029398,2]
[343362930,1732594157108,-8441.93496709,0.00029389,2]
[343362931,1732594157129,-140.44736745,0.00029398,2]
[343362932,1732594157250,-502.73225548,0.00029398,2]
[343362933,1732594157272,-105.40834923,0.00029398,2]
[343362934,1732594207268,319.87095883,0.000284,2]
[343363013,1732594238153,-267.08017194,0.00029298,7]
[343363032,1732594238333,-1015.53372284,0.00029298,7]
[343363035,1732594238344,-192.42201427,0.00029398,2]
[343363037,1732594238354,-446.84564175,0.00029538,2]
[343363039,1732594238366,-1389.33299643,0.00029539,2]
[343363041,1732594238375,-300.0,0.00029579,2]
[343363043,1732594238385,-3595.49665811,0.0002958,7]
[343363045,1732594238395,-212.7413024,0.000296,30]
[343363047,1732594238404,-379.11,0.00029628,10]
[343363049,1732594238414,-500.0,0.00029637,2]
[343363051,1732594238423,-187.79388467,0.00029637,2]
[343363053,1732594238433,-500.0,0.00029637,2]
[343363055,1732594238442,-500.0,0.00029637,2]
[343363057,1732594238451,-500.0,0.00029637,2]
[343363059,1732594238460,-586.59139744,0.00029637,2]
[343363061,1732594238470,-1750.06,0.00029637,2]
[343363063,1732594238479,-1750.06,0.00029637,2]
[343363065,1732594238488,-1750.06,0.00029637,2]
[343363067,1732594238498,-500.0,0.00029637,2]
[343363069,1732594238507,-638.53490166,0.00029637,2]
[343363071,1732594238516,-185.90876699,0.00029637,2]
[343363073,1732594238526,-347.09998478,0.00029637,2]
[343363075,1732594238538,-152.90001522,0.00029637,2]
[343363077,1732594238548,-200.0,0.00029637,2]
[343363079,1732594238562,-185.95593717,0.00029637,2]
[343363081,1732594238572,-188.79033932,0.00029637,2]
[343363083,1732594238581,-403.55554,0.00029637,2]
[343363085,1732594238591,-163.25037205,0.00029638,2]
[343363087,1732594238600,-201.05,0.00029638,23]
[343363089,1732594238610,-500.0,0.00029638,2]
[343363091,1732594238620,-500.0,0.00029638,2]
[343363094,1732594238634,-500.0,0.00029638,2]
[343363095,1732594238644,-352.62214753,0.00029638,2]
[343363097,1732594238654,-151.0,0.00029638,7]
[343363100,1732594238663,-158.94529,0.00029638,7]
[343363101,1732594238673,-159.45878,0.00029638,7]
[343363103,1732594238682,-151.0,0.00029638,7]
[343363105,1732594238691,-254.711116,0.00029638,7]
[343363108,1732594238700,-198.32584,0.00029638,7]
[343363109,1732594238710,-500.0,0.00029638,2]
[343363112,1732594238719,-500.0,0.00029638,2]
[343363113,1732594238730,-500.0,0.00029638,2]
[343363116,1732594238739,-500.0,0.00029638,2]
[343363118,1732594238750,-500.0,0.00029638,2]
[343363120,1732594238759,-500.0,0.00029638,2]
[343363122,1732594238769,-500.0,0.00029638,2]
[343363124,1732594238779,-500.0,0.00029638,2]
[343363126,1732594238788,-500.0,0.00029638,2]
[343363128,1732594238797,-500.0,0.00029638,2]
[343363130,1732594238806,-500.0,0.00029638,2]
[343363132,1732594238816,-500.0,0.00029638,2]
[343363134,1732594238825,-500.0,0.00029638,2]
[343363136,1732594238835,-500.0,0.00029638,2]
[343363138,1732594238844,-500.0,0.00029638,2]
[343363140,1732594238853,-500.0,0.00029638,2]
[343363142,1732594238862,-500.0,0.00029638,2]
[343363143,1732594238872,-606.83604604,0.00029638,2]
[343363146,1732594238881,-151.0,0.00029638,7]
[343363148,1732594238891,-276.275291,0.00029638,7]